bitfinex/quotes_ETHUSD_20250815
["timestamp","ask_amount","ask_price","bid_price","bid_amount"]
[1755218528019,0.4791,4571.5,4571.2,5.67158585]
[1755218528331,0.4791,4571.5,4571.3,2.18755482]
[1755218528332,0.002,4571.5,4571.3,2.18755482]
[1755218528645,0.002,4571.5,4571.4,2.18751367]
[1755218529017,0.002,4571.5,4571.4,2.97342541]
[1755218529716,0.002,4571.5,4571.4,6.45542541]
[1755218529930,0.002,4571.5,4571.4,5.66951367]
[1755218530378,0.4791,4571.5,4570.1,0.4458]
[1755218530525,0.9298,4571.5,4571.3,2.18755994]
[1755218530841,0.002,4571.5,4571.4,3.481]
[1755218531247,0.9298,4571.5,4571.4,3.481]
[1755218531549,0.002,4571.5,4571.4,5.66851367]
[1755218531862,0.002,4571.5,4571.4,3.5906]
[1755218532032,0.9298,4571.5,4571.4,3.5906]
[1755218532355,0.9298,4571.5,4571.4,0.1096]
[1755218532557,0.9298,4571.5,4571.4,3.481]
[1755218532857,0.002,4571.5,4571.4,3.481]
[1755218533171,0.002,4571.5,4571.4,5.66851367]
[1755218533735,0.002,4571.5,4571.4,0.1096]
[1755218534055,0.4791,4571.5,4571.4,3.5916]
[1755218534252,0.4791,4571.5,4571.4,0.1096]
[1755218534423,0.9298,4571.5,4571.4,3.5916]
[1755218534630,0.9298,4571.5,4571.4,3.5906]
[1755218534840,0.9298,4571.5,4571.4,3.481]
[1755218535224,0.9298,4571.5,4570.6,2.18785133]
[1755218535430,0.6596,4571.4,4570.8,0.1096]
[1755218535629,1.03748567,4571.4,4570.8,0.1096]
[1755218535831,1.51458567,4571.4,4570.8,0.1096]
[1755218536030,0.9278,4571.3,4570.8,0.1096]
[1755218536255,0.4771,4571.3,4570.7,3.48]
[1755218536457,0.002,4571.5,4571.2,2.18756191]
[1755218536657,0.002,4571.5,4571.3,3.479]
[1755218537978,0.4791,4571.5,4571.3,3.479]
[1755218538678,0.002,4571.5,4571.3,3.479]
[1755218539677,0.4771,4571.4,4571.2,0.1096]
[1755218539876,0.4771,4571.3,4570.7,2.18783895]
[1755218540182,0.74395601,4571.3,4571.0,2.18770142]
[1755218540338,0.4771,4571.3,4571.0,2.18770142]
[1755218541278,0.1096,4571.4,4570.8,5.77135655]
[1755218541477,0.4771,4571.2,4570.9,2.18774158]
[1755218542473,0.1096,4571.4,4571.0,2.18768797]
[1755218542672,0.1096,4571.4,4571.1,3.472]
[1755218542981,0.002,4571.5,4571.2,2.18757546]
[1755218543184,0.002,4571.5,4571.1,3.5816]
[1755218543899,0.002,4571.5,4571.2,2.18760569]
[1755218544070,0.002,4571.5,4571.3,2.18755497]
[1755218544274,0.002,4571.5,4571.4,5.65951367]
[1755218545904,0.002,4571.5,4571.4,6.10401367]
[1755218546101,0.002,4571.5,4571.4,5.76911367]
[1755218546269,0.002,4571.5,4571.4,6.21361367]
[1755218546660,0.002,4571.5,4571.4,5.76511367]
[1755218547000,0.002,4571.5,4571.4,7.00488573]
[1755218547201,0.002,4571.5,4571.4,5.76411367]
[1755218547559,0.002,4571.5,4571.4,3.5766]
[1755218547871,0.002,4571.5,4571.4,0.1096]
[1755218548068,0.4552,4571.5,4571.4,3.5756]
[1755218548282,0.002,4571.5,4571.4,3.466]
[1755218548486,0.002,4571.5,4571.4,5.76311367]
[1755218548681,0.002,4571.5,4571.4,6.20761367]
[1755218548863,0.002,4571.5,4571.4,7.09573506]
[1755218549189,0.002,4571.5,4571.4,3.62973506]
[1755218549400,0.002,4571.5,4571.4,7.09573506]
[1755218550097,0.002,4571.5,4571.4,7.58173506]
[1755218552676,0.002,4571.5,4571.4,11.58023504]
[1755218553290,0.002,4571.5,4571.4,7.58173506]
[1755218554102,0.002,4571.5,4571.4,7.09173506]
[1755218554469,0.002,4571.5,4571.4,6.64723506]
[1755218554707,0.002,4571.5,4571.4,6.64423506]
[1755218555776,0.002,4571.5,4571.4,3.18523506]
[1755218555975,0.002,4571.5,4571.4,6.64223506]
[1755218556228,0.002,4571.5,4571.4,5.75411367]
[1755218556372,0.002,4571.5,4571.3,0.0288]
[1755218556579,0.439,4571.5,4571.4,5.64451367]
[1755218556800,0.002,4571.5,4571.4,5.64451367]
[1755218557934,0.002,4571.5,4571.4,5.75411367]
[1755218558097,0.002,4571.5,4571.4,6.19320385]
[1755218558303,0.002,4571.5,4571.4,5.75411367]
[1755218560538,0.002,4571.5,4571.4,6.19861367]
[1755218560937,0.002,4571.5,4571.4,5.75411367]
[1755218562740,0.002,4571.5,4571.4,6.19861367]
[1755218563437,0.002,4571.5,4571.4,6.68461367]
[1755218563640,0.002,4571.5,4571.4,7.57471581]
[1755218564007,0.002,4571.5,4571.4,7.08871581]
[1755218564431,0.002,4571.5,4571.4,6.63621581]
[1755218565427,0.002,4571.5,4571.4,3.18721581]
[1755218565610,0.002,4571.5,4571.4,5.74511367]
[1755218565811,0.4552,4571.5,4571.4,5.74511367]
[1755218566212,0.002,4571.5,4571.4,5.74511367]
[1755218567455,0.8922,4571.5,4571.4,3.5566]
[1755218567860,0.8922,4571.5,4571.4,0.1096]
[1755218568058,0.8922,4571.5,4571.4,2.29711367]
[1755218568262,0.8922,4571.5,4571.4,5.74511367]
[1755218568459,0.4552,4571.5,4571.4,5.74511367]
[1755218569756,0.002,4571.5,4571.4,5.74511367]
[1755218569956,0.8922,4571.5,4571.4,5.74411367]
[1755218570162,0.002,4571.5,4571.4,5.74411367]
[1755218573197,0.002,4571.5,4571.4,2.29711367]
[1755218573364,0.002,4571.5,4571.4,9.74261365]
[1755218573562,0.002,4571.5,4571.4,10.18771365]
[1755218573750,0.002,4571.5,4571.4,10.41492952]
[1755218573951,0.002,4571.5,4571.4,10.87482952]
[1755218574687,0.002,4571.5,4571.4,10.41492952]
[1755218575759,0.002,4571.5,4571.4,6.29561365]
[1755218575963,0.002,4571.5,4571.4,9.74261365]
[1755218577745,0.002,4571.5,4571.4,6.29561365]
[1755218577946,0.002,4571.5,4571.4,9.74261365]
[1755218578567,0.002,4571.5,4571.4,10.18771365]
[1755218578752,0.002,4571.5,4571.4,9.74261365]
[1755218579360,0.002,4571.5,4571.4,10.98302573]
[1755218579681,0.002,4571.5,4571.4,9.74261365]
[1755218581292,0.002,4571.5,4571.4,10.18771365]
[1755218581784,0.002,4571.5,4571.4,9.74261365]
[1755218583610,0.002,4571.5,4571.4,10.18771365]
[1755218585107,0.002,4571.5,4571.4,6.29561365]
[1755218585406,0.4832,4571.5,4571.4,9.74161365]
[1755218586317,0.002,4571.5,4571.4,10.43317124]
[1755218588184,0.002,4571.5,4571.4,6.29561365]
[1755218588513,0.9365,4571.5,4571.4,9.74161365]
[1755218589883,0.4832,4571.5,4571.4,9.74161365]
[1755218590286,0.002,4571.5,4571.4,9.74161365]
[1755218591104,0.4832,4571.5,4571.4,9.74161365]
[1755218591412,0.002,4571.5,4571.4,9.74161365]
[1755218591813,0.002,4571.5,4571.4,6.29561365]
[1755218592019,0.002,4571.5,4571.4,9.74161365]
[1755218593424,0.4832,4571.5,4571.4,9.74161365]
[1755218593889,0.4832,4571.5,4571.4,6.29561365]
[1755218594087,0.002,4571.5,4571.4,9.74161365]
[1755218594794,0.002,4571.5,4571.4,10.98192573]
[1755218594988,0.002,4571.5,4571.4,7.53592573]
[1755218595185,0.002,4571.5,4571.4,9.74161365]
[1755218595620,0.002,4571.5,4571.4,9.34161365]
[1755218597330,0.002,4571.5,4571.4,9.78671365]
[1755218597523,0.002,4571.5,4571.4,5.89561365]
[1755218597723,0.002,4571.5,4571.4,9.34161365]
[1755218598029,0.002,4571.5,4571.4,9.78671365]
[1755218600027,0.002,4571.5,4571.4,10.98702573]
[1755218602101,0.002,4571.5,4571.4,11.44542573]
[1755218602429,0.002,4571.5,4571.4,10.98702573]
[1755218602616,0.002,4571.5,4571.4,11.44542573]
[1755218602815,0.002,4571.5,4571.4,10.54092573]
[1755218603233,0.002,4571.5,4571.4,10.98952573]
[1755218604297,0.002,4571.5,4571.4,7.09592573]
[1755218604497,0.002,4571.5,4571.4,5.34211367]
[1755218604730,0.002,4571.5,4571.4,1.89711367]
[1755218604930,0.002,4571.5,4571.4,6.24911367]
[1755218605433,0.002,4571.5,4571.4,5.34211367]
[1755218605602,0.002,4571.5,4571.4,6.24911367]
[1755218605795,0.002,4571.5,4571.4,6.63726575]
[1755218606433,0.002,4571.5,4571.4,7.09566575]
[1755218606929,0.002,4571.5,4571.4,6.18866575]
[1755218607332,0.002,4571.5,4571.4,6.63726575]
[1755218609731,0.002,4571.5,4571.4,6.18866575]
[1755218610138,0.002,4571.5,4571.4,6.63726575]
[1755218610338,0.002,4571.5,4571.4,5.34111367]
[1755218610836,0.002,4571.5,4571.4,1.89711367]
[1755218611022,0.002,4571.5,4571.4,5.34111367]
[1755218614516,0.4653,4571.5,4571.4,5.34111367]
[1755218614715,0.4653,4571.5,4571.4,5.34011367]
[1755218614716,0.9008,4571.5,4571.4,5.34011367]
[1755218616527,0.4653,4571.5,4571.4,5.34011367]
[1755218618052,0.9008,4571.5,4571.4,5.34011367]
[1755218619464,0.002,4571.5,4571.4,5.34011367]
[1755218620147,0.002,4571.5,4571.4,1.89711367]
[1755218620148,0.4653,4571.5,4571.4,1.89711367]
[1755218620348,0.9008,4571.5,4571.4,3.5516]
[1755218620666,0.9008,4571.5,4571.4,0.1096]
[1755218620828,0.9008,4571.5,4571.4,3.442]
[1755218621234,0.872,4571.5,4571.4,3.442]
[1755218621831,0.872,4571.5,4571.3,0.001]
[1755218622146,6.17301367,4571.4,4571.3,0.001]
[1755218623267,6.63631367,4571.4,4571.3,0.001]
[1755218623757,4.4488,4571.4,4571.3,0.001]
[1755218623957,3.4633,4571.4,4571.3,0.001]
[1755218624330,3.8988,4571.4,4571.3,0.001]
[1755218624647,3.4633,4571.4,4571.3,0.001]
[1755218624848,0.1116,4571.6,4571.3,0.001]
[1755218625039,0.002,4571.6,4571.3,0.1106]
[1755218625358,0.002,4571.6,4571.4,3.442]
[1755218626353,0.4653,4571.6,4571.4,3.442]
[1755218627629,0.002,4571.6,4571.4,3.442]
[1755218627834,0.3022,4571.6,4571.4,3.442]
[1755218628167,0.4633,4571.5,4571.4,3.442]
[1755218629071,0.4633,4571.5,4571.3,0.001]
[1755218629232,0.7377,4571.6,4571.3,0.001]
[1755218629233,18.17060814,4571.4,4571.3,0.001]
[1755218629431,18.28020814,4571.4,4571.3,0.001]
[1755218629665,18.69472022,4571.4,4571.3,0.001]
[1755218632172,19.35223922,4571.4,4571.3,0.001]
[1755218632570,18.69472022,4571.4,4571.3,0.001]
[1755218633078,18.78238922,4571.4,4571.3,0.001]
[1755218633493,0.197269,4571.4,4571.3,5.62956152]
[1755218633662,0.087669,4571.4,4571.3,6.53216152]
[1755218633981,0.087669,4571.4,4571.3,6.61978752]
[1755218634184,0.002,4571.6,4571.5,2.18746582]
[1755218634353,0.002,4571.6,4571.5,3.06819115]
[1755218634553,0.002,4571.6,4571.5,3.97079115]
[1755218638556,0.002,4571.6,4571.5,6.50819115]
[1755218639471,0.002,4571.6,4571.5,6.93949115]
[1755218642263,0.002,4571.6,4571.5,3.49949115]
[1755218642501,0.002,4571.6,4571.5,5.62746582]
[1755218643693,0.002,4571.6,4571.5,5.73706582]
[1755218644187,0.002,4571.6,4571.5,6.16836582]
[1755218644494,0.002,4571.6,4571.5,6.63966582]
[1755218645198,0.002,4571.6,4571.5,6.16836582]
[1755218645374,0.002,4571.6,4571.5,7.00405855]
[1755218645573,0.002,4571.6,4571.5,7.47535855]
[1755218646190,0.002,4571.6,4571.5,7.00405855]
[1755218646576,0.002,4571.6,4571.5,3.13275855]
[1755218646782,0.002,4571.6,4571.5,6.57175855]
[1755218647773,0.002,4571.6,4571.5,2.29706582]
[1755218647979,0.8887,4571.6,4571.5,5.73606582]
[1755218648290,0.8887,4571.6,4571.5,3.5486]
[1755218648596,0.8887,4571.6,4571.5,5.73606582]
[1755218648799,0.4531,4571.6,4571.5,5.73606582]
[1755218649855,0.002,4571.6,4571.5,5.73606582]
[1755218651186,0.4531,4571.6,4571.5,5.73606582]
[1755218652657,0.4531,4571.6,4571.5,3.5486]
[1755218652999,0.4531,4571.6,4571.5,3.5476]
[1755218653199,0.002,4571.6,4571.5,5.73506582]
[1755218657378,0.58847641,4573.6,4571.9,0.55]
[1755218657577,0.1116,4573.9,4572.6,3.0]
[1755218657809,0.1116,4573.9,4573.8,2.18636582]
[1755218658009,0.1096,4575.0,4573.8,3.442]
[1755218658205,0.2495,4575.2,4573.9,0.9026]
[1755218658455,0.2495,4575.2,4574.9,0.1096]
[1755218658748,0.2495,4575.2,4575.1,2.18574457]
[1755218661012,0.2495,4575.2,4575.1,5.62374457]
[1755218661241,0.2495,4575.2,4575.1,6.05504457]
[1755218661832,0.2495,4575.2,4575.1,6.51984457]
[1755218662343,0.2495,4575.2,4575.1,7.4013707]
[1755218662548,0.2495,4575.2,4575.1,7.5109707]
[1755218663152,0.002,4576.2,4576.1,2.18526693]
[1755218663352,0.002,4576.2,4576.1,5.73186693]
[1755218664269,0.002,4576.2,4576.1,2.29486693]
[1755218664578,0.002,4576.2,4576.1,3.5466]
[1755218664867,0.4973,4576.2,4576.1,3.5466]
[1755218665068,0.002,4576.2,4576.1,2.29486693]
[1755218665377,0.002,4576.2,4576.1,3.5466]
[1755218665678,0.002,4576.2,4576.1,6.17986693]
[1755218667267,0.002,4576.2,4576.1,5.73186693]
[1755218668279,0.002,4576.2,4576.1,6.17986693]
[1755218668430,0.002,4576.2,4576.1,5.73186693]
[1755218669265,0.002,4576.2,4576.1,0.1096]
[1755218669266,0.9391,4576.2,4576.1,0.1096]
[1755218669476,0.55,4577.3,4576.1,3.435]
[1755218669684,2.1852083,4576.3,4576.2,3.435]
[1755218670172,2.18502415,4576.7,4576.1,0.1096]
[1755218670173,2.18513508,4576.4,4576.1,0.1096]
[1755218670342,0.1096,4576.7,4576.2,3.435]
[1755218670663,2.18517142,4576.3,4576.2,3.435]
[1755218671668,2.68047142,4576.3,4576.2,3.435]
[1755218672054,2.1854877,4575.7,4574.7,0.448]
[1755218672260,3.0,4577.0,4574.7,0.448]
[1755218672261,0.4953,4575.8,4575.4,0.1096]
[1755218672571,2.18555349,4575.5,4575.4,0.1096]
[1755218672730,2.18560125,4575.4,4575.3,3.435]
[1755218672937,2.18560125,4575.4,4575.0,0.1096]
[1755218672938,2.18568567,4575.3,4575.0,0.1096]
[1755218673132,2.68098567,4575.3,4575.1,3.435]
[1755218673370,2.18574457,4575.1,4575.0,0.1096]
[1755218673572,2.18601635,4574.6,4574.3,0.1096]
[1755218673772,0.1096,4575.1,4574.3,0.1096]
[1755218673773,2.18603596,4574.5,4574.4,3.435]
[1755218674082,0.1096,4575.7,4574.4,4.47926079]
[1755218674286,2.68038933,4576.5,4575.5,0.1096]
[1755218674580,0.1096,4576.3,4575.6,3.435]
[1755218674740,2.18536755,4575.9,4575.6,3.435]
[1755218674942,2.18532565,4576.0,4575.6,3.435]
[1755218675164,2.18526947,4576.1,4575.6,3.883]
[1755218675382,0.1096,4576.3,4575.6,3.435]
[1755218675990,2.18540402,4575.9,4575.6,3.435]
[1755218676508,2.18517218,4576.3,4575.7,0.448]
[1755218676774,2.18517218,4576.3,4575.8,0.1096]
[1755218677138,2.18517218,4576.3,4575.9,3.435]
[1755218677368,0.1096,4576.6,4575.9,3.435]
[1755218677554,2.18517346,4576.3,4575.9,3.435]
[1755218678080,2.18522326,4576.2,4575.9,3.435]
[1755218678283,2.18517994,4576.3,4575.9,3.435]
[1755218678453,5.67313444,4576.6,4575.9,3.435]
[1755218678653,2.18513367,4576.4,4575.9,3.435]
[1755218679053,5.67313613,4576.6,4575.9,3.435]
[1755218679251,2.18479924,4577.1,4576.0,0.9128]
[1755218679478,2.18483291,4577.1,4576.1,3.435]
[1755218679681,0.26801329,4577.0,4576.0,0.448]
[1755218679984,0.26801329,4577.0,4576.2,2.18521917]
[1755218680181,0.26801329,4577.0,4576.5,2.1850674]
[1755218680497,0.01563772,4577.7,4576.6,5.62002613]
[1755218680652,2.2001548,4577.7,4576.9,2.18488487]
[1755218680848,2.2001548,4577.7,4576.0,2.18527033]
[1755218680849,2.18455085,4577.6,4577.0,3.435]
[1755218681053,5.1846463,4577.4,4577.0,3.435]
[1755218681276,2.68001267,4577.3,4577.0,3.435]
[1755218681680,2.68001267,4577.3,4576.5,2.18505694]
[1755218681880,0.4953,4577.3,4576.6,5.62001284]
[1755218682084,0.01563772,4577.7,4576.6,3.95226333]
[1755218682292,0.002,4577.1,4576.7,6.06796956]
[1755218682450,0.002,4577.1,4576.9,2.1848477]
[1755218682651,0.002,4577.1,4576.6,2.18500999]
[1755218682866,0.22066832,4577.1,4575.9,0.448]
[1755218683114,0.4973,4577.1,4576.0,3.435]
[1755218683270,2.18490801,4576.9,4576.2,2.18521466]
[1755218683476,0.4973,4577.1,4576.3,2.18516453]
[1755218683784,2.6820932,4577.1,4576.3,2.18516453]
[1755218684002,0.002,4577.1,4576.4,0.448]
[1755218684185,0.002,4577.1,4576.7,2.18497482]
[1755218684388,0.002,4577.1,4576.5,3.8988]
[1755218684709,0.002,4577.1,4576.9,2.18485239]
[1755218684869,0.002,4577.1,4577.0,5.64068559]
[1755218685065,0.002,4577.1,4577.0,5.61883722]
[1755218685302,0.002,4577.1,4577.0,6.06683722]
[1755218685470,0.002,4577.1,4577.0,6.53163722]
[1755218685672,0.002,4577.1,4576.7,2.18493584]
[1755218685898,0.002,4577.1,4576.8,3.434]
[1755218686301,0.002,4577.1,4576.5,2.18507384]
[1755218686503,0.002,4577.1,4576.6,3.434]
[1755218686689,0.002,4577.1,4576.7,2.18494382]
[1755218686889,0.002,4577.1,4576.7,0.9128]
[1755218687090,0.002,4577.1,4576.8,3.434]
[1755218687604,0.002,4577.1,4575.8,0.448]
[1755218687813,0.002,4577.1,4575.9,3.74382526]
[1755218688021,0.47101744,4577.1,4575.9,3.74382526]
[1755218688195,0.46901744,4577.0,4576.4,2.18511278]
[1755218688394,0.002,4577.1,4576.0,0.448]
[1755218688706,0.47020713,4577.0,4576.3,2.1851658]
[1755218688889,2.18679886,4577.1,4576.4,2.18512261]
[1755218689091,0.47020934,4577.0,4576.3,2.18516477]
[1755218689324,0.47028674,4576.9,4576.7,0.1096]
[1755218689641,0.47028674,4577.0,4576.7,3.5436]
[1755218689806,0.002,4577.1,4576.7,3.5436]
[1755218690115,0.47028679,4577.0,4576.7,3.5436]
[1755218690319,0.002,4577.1,4576.7,3.9916]
[1755218690320,0.47033999,4576.9,4576.7,3.9916]
[1755218690484,0.47033999,4577.0,4576.7,3.9916]
[1755218690687,0.47033999,4576.9,4576.7,3.9916]
[1755218690888,0.47033999,4577.0,4576.7,0.5576]
[1755218691108,0.47033999,4576.9,4576.8,3.434]
[1755218691307,0.47033999,4577.0,4576.8,3.434]
[1755218691514,0.002,4577.1,4576.8,3.434]
[1755218691720,0.47039116,4577.0,4576.8,3.434]
[1755218691919,0.47038543,4577.0,4576.8,3.434]
[1755218692522,0.47238543,4577.1,4576.8,3.434]
[1755218692690,0.47238543,4577.1,4576.7,0.1096]
[1755218692903,0.47238543,4577.1,4576.8,3.434]
[1755218692904,0.47038543,4577.0,4576.8,3.434]
[1755218693532,0.002,4577.1,4576.8,3.434]
[1755218693732,0.47238543,4577.1,4576.8,3.8929]
[1755218693932,0.002,4577.1,4576.8,3.8929]
[1755218694108,0.47238543,4577.1,4576.8,3.8929]
[1755218694314,0.002,4577.1,4576.8,3.8929]
[1755218694723,0.002,4577.1,4576.9,0.9503]
[1755218695001,0.002,4577.1,4577.0,0.1096]
[1755218695625,0.002,4577.1,4577.0,3.5436]
[1755218695825,0.002,4577.1,4577.0,0.1096]
[1755218696027,0.002,4577.1,4577.0,3.5436]
[1755218696222,0.002,4577.1,4577.0,0.1096]
[1755218696428,0.002,4577.1,4577.0,4.0025]
[1755218697406,0.002,4577.1,4577.0,6.67873722]
[1755218697629,0.002,4577.1,4577.0,5.2348737]
[1755218697831,2.18678949,4577.1,4577.0,3.99849998]
[1755218699925,2.65508949,4577.1,4577.0,3.99849998]
[1755218700446,2.65508949,4577.1,4577.0,7.43149998]
[1755218700640,0.002,4577.1,4577.0,7.43149998]
[1755218701363,0.002,4577.1,4577.0,7.99999998]
[1755218701662,0.002,4577.1,4577.0,10.6762372]
[1755218701812,0.002,4577.1,4577.0,8.49139998]
[1755218702142,0.002,4577.1,4577.0,7.54109998]
[1755218702856,0.002,4577.1,4577.0,4.10809998]
[1755218703162,0.002,4577.1,4577.0,7.43149998]
[1755218703662,0.002,4577.1,4577.0,3.433]
[1755218704750,0.002,4577.1,4577.0,3.8919]
[1755218705417,0.002,4577.1,4577.0,4.4929]
[1755218705661,0.002,4577.1,4577.0,4.0015]
[1755218705962,0.002,4577.1,4577.0,6.18633722]
[1755218706141,0.002,4577.1,4577.0,7.51486257]
[1755218709218,0.002,4577.1,4577.0,3.5426]
[1755218709423,0.002,4577.1,4577.0,0.1096]
[1755218709625,0.002,4577.1,4577.0,3.5426]
[1755218709860,0.002,4577.1,4577.0,0.1096]
[1755218710042,0.002,4577.1,4577.0,6.67773722]
[1755218710234,0.002,4577.1,4577.0,7.56400372]
[1755218711059,0.01609049,4577.8,4577.7,2.18450313]
[1755218711060,1e-08,4577.8,4577.7,2.18450313]
[1755218711229,1.16517615,4579.1,4579.0,2.18388294]
[1755218711430,0.2495,4579.4,4579.3,2.18373987]
[1755218711632,0.2495,4579.4,4579.3,6.49483215]
[1755218711833,2.00000001,4580.1,4580.0,2.18340611]
[1755218712036,1e-08,4580.1,4580.0,6.59454017]
[1755218712358,0.2495,4582.2,4580.0,6.59454017]
[1755218712359,0.2495,4582.2,4580.3,2.18326033]
[1755218712656,0.2495,4582.2,4580.6,2.18312011]
[1755218712836,0.2495,4582.2,4581.6,2.18264361]
[1755218713272,0.2495,4582.2,4581.6,3.13294361]
[1755218713434,0.2495,4582.2,4581.6,3.453]
[1755218713638,0.2495,4582.2,4581.6,6.09454361]
[1755218713859,0.2495,4582.2,4581.6,7.41367021]
[1755218714161,0.2495,4582.2,4580.0,0.87780218]
[1755218714468,0.2495,4582.2,4581.6,0.9503]
[1755218714756,0.2495,4582.2,4581.6,4.43012643]
[1755218714925,0.2495,4582.2,4581.6,0.9503]
[1755218715121,0.2495,4582.2,4579.0,10.0]
[1755218715437,2.18286661,4581.2,4580.2,2.18331077]
[1755218715637,2.18264361,4581.6,4580.3,0.9503]
[1755218715971,2.18264361,4581.6,4580.4,3.464]
[1755218715972,3.0,4581.4,4580.4,3.464]
[1755218716172,3.4683,4581.5,4580.3,3.464]
[1755218716326,3.4683,4581.5,4578.2,2.8401621]
[1755218716327,25.01272346,4581.0,4578.6,0.4589]
[1755218716530,2.18365262,4579.5,4578.6,2.64296268]
[1755218716749,2.18368366,4579.5,4578.6,1.26336415]
[1755218717036,3.55,4580.3,4578.7,3.9279]
[1755218717262,3.0,4579.7,4578.1,0.4589]
[1755218717426,3.0,4579.5,4577.8,3.47]
[1755218717623,3.0,4579.3,4577.9,0.8059]
[1755218717870,0.4683,4579.4,4578.2,2.18425488]
[1755218718074,0.4683,4579.4,4578.2,3.47]
[1755218718278,3.0,4579.3,4578.3,0.347]
[1755218718462,2.18383643,4579.1,4578.3,0.8059]
[1755218718659,2.18383643,4579.1,4578.3,0.347]
[1755218718856,2.18382025,4579.2,4578.2,5.65425546]
[1755218719059,2.18372968,4579.4,4578.4,2.18416738]
[1755218719278,3.0,4579.6,4578.3,2.18421359]
[1755218719583,3.0,4579.6,4578.3,2.18421327]
[1755218719584,2.18373632,4579.4,4578.3,2.18421327]
[1755218719888,2.18287154,4581.2,4578.2,3.47]
[1755218719889,0.4372,4580.5,4578.4,0.02184169]
[1755218720185,0.12680776,4581.7,4578.9,0.55]
[1755218720334,0.12680776,4581.7,4579.1,0.55]
[1755218720335,2.18266732,4581.6,4579.1,0.55]
[1755218720556,0.12680776,4581.7,4579.3,0.55]
[1755218720839,2.30941088,4581.7,4580.8,2.18298098]
[1755218721063,0.23094109,4581.6,4580.8,2.18298098]
[1755218721372,5.41358516,4581.6,4581.3,0.1088]
[1755218721531,2.1827389,4581.4,4580.7,3.477]
[1755218721738,0.4683,4581.5,4581.0,0.1088]
[1755218721949,0.33974109,4581.6,4581.0,0.1088]
[1755218722266,0.1088,4581.6,4581.0,0.1088]
[1755218722774,0.12680776,4581.7,4581.5,0.1088]
[1755218722975,0.12680776,4581.7,4581.5,0.573]
[1755218723141,0.12680776,4581.7,4581.5,0.59482691]
[1755218723459,0.12680776,4581.7,4581.5,0.98008269]
[1755218723663,0.12680776,4581.7,4581.5,0.1088]
[1755218723861,0.12680776,4581.7,4581.6,2.18264361]
[1755218724063,0.12680776,4581.7,4581.6,2.64684361]
[1755218724251,0.12680776,4581.7,4581.6,3.14214361]
[1755218724450,0.12680776,4581.7,4581.6,3.25094361]
[1755218724651,0.12680776,4581.7,4581.6,3.8161368]
[1755218725640,1e-08,4581.7,4581.6,3.8161368]
[1755218725905,0.1088,4584.1,4581.7,2.18259597]
[1755218726187,0.013,4584.7,4582.0,0.55]
[1755218726388,0.4969,4586.2,4582.2,0.55]
[1755218726542,0.4969,4586.2,4582.9,0.55]
[1755218726747,0.03133231,4586.7,4583.2,0.55]
[1755218726991,0.03133231,4586.7,4583.7,3.55]
[1755218727296,0.03133231,4586.7,4583.9,3.0]
[1755218727443,0.03133231,4586.7,4586.5,2.18031178]
[1755218727644,0.436,4588.8,4586.6,3.513]
[1755218727873,2.17950786,4588.2,4586.6,3.513]
[1755218728051,0.58167132,4589.5,4586.7,0.9595]
[1755218728359,3.0,4589.3,4587.1,2.17997908]
[1755218728558,0.27604905,4589.4,4587.2,0.9595]
[1755218728778,2.17841892,4590.5,4586.8,5.708162]
[1755218728779,0.51225151,4590.6,4587.3,0.98129931]
[1755218728978,30.0,4590.5,4587.4,0.4642]
[1755218729182,19.03640822,4590.1,4586.7,0.4642]
[1755218729386,2.18024177,4586.7,4585.3,3.541]
[1755218729675,0.4969,4588.5,4588.2,2.17950302]
[1755218729842,30.0,4588.4,4585.3,0.55]
[1755218730043,30.0,4588.4,4586.4,2.18035932]
[1755218730044,0.9329,4588.4,4586.4,2.18035932]
[1755218730276,0.55,4588.1,4585.8,3.573]
[1755218730457,2.17978899,4587.6,4585.6,3.574]
[1755218730654,2.18027997,4586.6,4585.6,3.574]
[1755218730892,0.4969,4587.0,4585.6,3.574]
[1755218731046,0.4969,4587.6,4585.7,0.02180692]
[1755218731248,0.4969,4588.4,4585.8,1.31908069]
[1755218731449,0.4969,4588.4,4587.3,2.17992007]
[1755218731754,0.4969,4588.4,4586.9,3.575]
[1755218731955,0.4969,4588.4,4587.0,3.575]
[1755218732178,2.17952144,4588.2,4587.0,3.575]
[1755218732379,0.26764214,4588.1,4587.4,2.17986941]
[1755218732687,0.26764214,4588.1,4587.0,3.575]
[1755218732688,2.17877536,4589.8,4587.5,0.48599836]
[1755218732919,0.55,4590.3,4588.3,2.17945126]
[1755218732920,2.17855431,4590.2,4588.3,2.17945126]
[1755218733088,0.01535151,4590.6,4588.4,4.0362]
[1755218733286,30.9329,4590.5,4588.1,3.579]
[1755218733505,31.39402893,4590.4,4587.8,0.4642]
[1755218733692,2.17860177,4590.1,4587.2,0.4642]
[1755218733888,2.17874417,4589.8,4587.9,2.17963944]
[1755218734213,2.17876515,4589.8,4588.0,3.59]
[1755218734436,0.4969,4589.7,4587.8,3.591]
[1755218734587,0.4969,4589.7,4588.1,0.4642]
[1755218734774,0.4969,4589.7,4588.2,3.597]
[1755218735087,0.002,4590.2,4588.2,3.597]
[1755218735277,0.002,4590.2,4588.3,0.9595]
[1755218735477,0.002,4590.2,4588.4,0.02179408]
[1755218735694,0.002,4590.2,4588.5,0.4642]
[1755218735896,0.002,4590.2,4588.7,2.17926645]
[1755218736098,0.002,4590.2,4588.3,3.596]
[1755218736099,5.17860177,4590.1,4588.3,3.596]